[Event "Late-Titled-Tuesday-Blitz-November-28-2023"]
[Site "Chess.com"]
[Date "2023.11.28"]
[Round "8"]
[White "Elbebiber"]
[Black "MathiasWomacka"]
[Result "0-1"]
[WhiteElo "2144"]
[BlackElo "2514"]
[TimeControl "180+1"]
[EndTime "15:23:28 PST"]
[Termination "MathiasWomacka won by resignation"]

1. d4 {[%clk 0:02:59.8]} 1... Nf6 {[%clk 0:02:59.2]} 2. Bg5 {[%clk 0:02:59.1]}
2... Ne4 {[%clk 0:02:57.9]} 3. Bf4 {[%clk 0:02:58.7]} 3... c5 {[%clk 0:02:58.1]}
4. Nd2 {[%clk 0:02:42.4]} 4... Nxd2 {[%clk 0:02:52.3]} 5. Qxd2 {[%clk
0:02:38.6]} 5... cxd4 {[%clk 0:02:52.4]} 6. Bxb8 {[%clk 0:02:30.8]} 6... Rxb8
{[%clk 0:02:53.3]} 7. Qxd4 {[%clk 0:02:30.3]} 7... Qa5+ {[%clk 0:02:46.5]} 8.
Qd2 {[%clk 0:02:21.1]} 8... Qxd2+ {[%clk 0:02:45.1]} 9. Kxd2 {[%clk 0:02:21]}
9... d5 {[%clk 0:02:38.5]} 10. e3 {[%clk 0:02:18.1]} 10... e5 {[%clk 0:02:28.1]}
11. Bb5+ {[%clk 0:02:16.4]} 11... Kd8 {[%clk 0:02:26.6]} 12. Nf3 {[%clk
0:02:08.8]} 12... f6 {[%clk 0:02:26.5]} 13. Rhd1 {[%clk 0:01:54]} 13... Kc7
{[%clk 0:02:25.7]} 14. Ke1 {[%clk 0:01:50.4]} 14... Be6 {[%clk 0:02:25]} 15. c3
{[%clk 0:01:41.1]} 15... Bc5 {[%clk 0:02:20.2]} 16. Ba4 {[%clk 0:01:37.7]} 16...
Rhd8 {[%clk 0:02:15.2]} 17. Bb3 {[%clk 0:01:36.9]} 17... Rd6 {[%clk 0:02:14.7]}
18. Rd2 {[%clk 0:01:31.6]} 18... Rbd8 {[%clk 0:02:13.9]} 19. Rad1 {[%clk
0:01:31.4]} 19... R8d7 {[%clk 0:01:39.8]} 20. h3 {[%clk 0:01:28.8]} 20... b5
{[%clk 0:01:29.8]} 21. a4 {[%clk 0:01:20.7]} 21... b4 {[%clk 0:01:21.1]} 22.
cxb4 {[%clk 0:01:16.3]} 22... Bxb4 {[%clk 0:01:20.1]} 23. Ke2 {[%clk 0:01:11.3]}
23... Bxd2 {[%clk 0:01:18.9]} 24. Nxd2 {[%clk 0:01:11.6]} 24... Rb6 {[%clk
0:01:12.4]} 25. a5 {[%clk 0:01:08.3]} 25... Rb4 {[%clk 0:01:09.7]} 26. Rc1+
{[%clk 0:01:06.2]} 26... Kd8 {[%clk 0:01:09.5]} 27. Rc5 {[%clk 0:01:04.1]} 27...
Rc7 {[%clk 0:01:02]} 28. Rxc7 {[%clk 0:01:02.9]} 28... Kxc7 {[%clk 0:01:02.5]}
29. Kd3 {[%clk 0:01:02.7]} 29... Kd6 {[%clk 0:00:59.7]} 30. Kc3 {[%clk
0:01:03.1]} 30... Kc5 {[%clk 0:00:59.6]} 31. Bc2 {[%clk 0:00:53.6]} 31... d4+
{[%clk 0:00:58.9]} 32. exd4+ {[%clk 0:00:53.8]} 32... exd4+ {[%clk 0:00:59.5]}
33. Kd3 {[%clk 0:00:54.2]} 33... Bf5+ {[%clk 0:00:59.5]} 0-1

[Event "Late-Titled-Tuesday-Blitz-November-28-2023"]
[Site "Chess.com"]
[Date "2023.11.28"]
[Round "8"]
[White "Hilary46"]
[Black "cthulhuuu"]
[Result "1-0"]
[WhiteElo "2635"]
[BlackElo "2496"]
[TimeControl "180+1"]
[EndTime "15:23:33 PST"]
[Termination "Hilary46 won by checkmate"]

1. e4 {[%clk 0:03:00.9]} 1... d6 {[%clk 0:02:54.9]} 2. d4 {[%clk 0:03:00.6]}
2... Nf6 {[%clk 0:02:54.1]} 3. Nc3 {[%clk 0:03:01.2]} 3... c6 {[%clk 0:02:49]}
4. f4 {[%clk 0:03:01.3]} 4... Qb6 {[%clk 0:02:47.6]} 5. Nf3 {[%clk 0:02:55.7]}
5... Bg4 {[%clk 0:02:47.2]} 6. h3 {[%clk 0:02:54.9]} 6... Bxf3 {[%clk
0:02:47.3]} 7. Qxf3 {[%clk 0:02:55.8]} 7... Qxd4 {[%clk 0:02:38.4]} 8. Be3
{[%clk 0:02:55.9]} 8... Qb4 {[%clk 0:02:38.5]} 9. O-O-O {[%clk 0:02:56.5]} 9...
e5 {[%clk 0:02:28.8]} 10. g4 {[%clk 0:02:52.5]} 10... Be7 {[%clk 0:02:25.7]} 11.
g5 {[%clk 0:02:50.3]} 11... Nfd7 {[%clk 0:02:25.7]} 12. f5 {[%clk 0:02:49]}
12... f6 {[%clk 0:02:18.2]} 13. Qh5+ {[%clk 0:02:43.6]} 13... Kd8 {[%clk
0:01:34.4]} 14. Rg1 {[%clk 0:02:36.3]} 14... fxg5 {[%clk 0:00:48.8]} 15. a3
{[%clk 0:02:36.1]} 15... Qa5 {[%clk 0:00:34.8]} 16. Bxg5 {[%clk 0:02:36.2]}
16... Nf6 {[%clk 0:00:32.1]} 17. Qf7 {[%clk 0:02:34.6]} 17... Qc5 {[%clk
0:00:18.5]} 18. Bc4 {[%clk 0:02:01]} 18... Rf8 {[%clk 0:00:18.1]} 19. Qe6 {[%clk
0:01:58.2]} 19... Nbd7 {[%clk 0:00:16.7]} 20. Bb3 {[%clk 0:01:32.7]} 20... b5
{[%clk 0:00:12]} 21. Rg3 {[%clk 0:01:27.7]} 21... Qf2 {[%clk 0:00:10.6]} 22.
Rgd3 {[%clk 0:01:26.7]} 22... Nc5 {[%clk 0:00:08.4]} 23. Rxd6+ {[%clk
0:01:26.1]} 23... Bxd6 {[%clk 0:00:08.4]} 24. Qxd6+ {[%clk 0:01:27]} 24... Nd7
{[%clk 0:00:06.9]} 25. Qxd7# {[%clk 0:01:24.7]} 1-0

[Event "Late-Titled-Tuesday-Blitz-November-28-2023"]
[Site "Chess.com"]
[Date "2023.11.28"]
[Round "8"]
[White "CheckThis4"]
[Black "Goffredo_Fofi"]
[Result "1-0"]
[WhiteElo "2722"]
[BlackElo "2527"]
[TimeControl "180+1"]
[EndTime "15:23:41 PST"]
[Termination "CheckThis4 won by resignation"]

1. e4 {[%clk 0:03:00.9]} 1... g6 {[%clk 0:03:00]} 2. d4 {[%clk 0:03:00.1]} 2...
Bg7 {[%clk 0:03:00.7]} 3. Nc3 {[%clk 0:03:00.4]} 3... c6 {[%clk 0:03:01.4]} 4.
Be3 {[%clk 0:02:58.9]} 4... d5 {[%clk 0:03:01.8]} 5. Qd2 {[%clk 0:02:59.2]} 5...
dxe4 {[%clk 0:02:58.5]} 6. Nxe4 {[%clk 0:02:59.1]} 6... Nf6 {[%clk 0:02:58.8]}
7. Nxf6+ {[%clk 0:02:59.2]} 7... exf6 {[%clk 0:02:59.7]} 8. O-O-O {[%clk
0:02:57.7]} 8... O-O {[%clk 0:02:59.8]} 9. Bh6 {[%clk 0:02:55.7]} 9... Be6
{[%clk 0:02:55.2]} 10. h4 {[%clk 0:02:53.9]} 10... Bxh6 {[%clk 0:02:27.9]} 11.
Qxh6 {[%clk 0:02:52.7]} 11... Nd7 {[%clk 0:02:27.9]} 12. h5 {[%clk 0:02:27.3]}
12... g5 {[%clk 0:01:51]} 13. Bd3 {[%clk 0:02:26.1]} 13... f5 {[%clk 0:01:51.2]}
14. Nf3 {[%clk 0:02:23.3]} 14... f6 {[%clk 0:01:44.2]} 15. Nxg5 {[%clk
0:02:20.1]} 15... fxg5 {[%clk 0:01:40.3]} 16. Qxe6+ {[%clk 0:02:18.9]} 16... Kh8
{[%clk 0:01:40.8]} 17. Bxf5 {[%clk 0:02:12.3]} 17... Nf6 {[%clk 0:01:37.6]} 18.
g4 {[%clk 0:02:06.7]} 18... Qa5 {[%clk 0:01:29.6]} 19. a3 {[%clk 0:01:49.3]}
19... Rae8 {[%clk 0:01:29.4]} 20. Qb3 {[%clk 0:01:48.5]} 20... Nd5 {[%clk
0:01:28.8]} 21. Qxb7 {[%clk 0:01:40.5]} 21... Re7 {[%clk 0:01:26.8]} 22. Qxc6
{[%clk 0:01:26.6]} 22... Rc7 {[%clk 0:01:24]} 23. Qd6 {[%clk 0:01:24.4]} 23...
Re8 {[%clk 0:01:10.4]} 24. Rhe1 {[%clk 0:01:05.7]} 1-0

[Event "Late-Titled-Tuesday-Blitz-November-28-2023"]
[Site "Chess.com"]
[Date "2023.11.28"]
[Round "8"]
[White "e4evr"]
[Black "GlavkonVVS"]
[Result "0-1"]
[WhiteElo "2141"]
[BlackElo "2505"]
[TimeControl "180+1"]
[EndTime "15:23:49 PST"]
[Termination "GlavkonVVS won by checkmate"]

1. e4 {[%clk 0:03:00]} 1... c5 {[%clk 0:02:59.1]} 2. Nf3 {[%clk 0:03:00]} 2...
d6 {[%clk 0:02:58.9]} 3. d4 {[%clk 0:03:00.4]} 3... cxd4 {[%clk 0:02:58.1]} 4.
Nxd4 {[%clk 0:03:00.1]} 4... Nf6 {[%clk 0:02:58.7]} 5. Nc3 {[%clk 0:03:00.4]}
5... a6 {[%clk 0:02:58.9]} 6. a4 {[%clk 0:03:01.1]} 6... e5 {[%clk 0:02:58.8]}
7. Nf3 {[%clk 0:02:59.4]} 7... Be6 {[%clk 0:02:58]} 8. Bg5 {[%clk 0:02:56.8]}
8... Be7 {[%clk 0:02:57.9]} 9. Be2 {[%clk 0:02:56.6]} 9... Nbd7 {[%clk
0:02:57.9]} 10. O-O {[%clk 0:02:55.7]} 10... Rc8 {[%clk 0:02:58.3]} 11. a5
{[%clk 0:02:40.8]} 11... O-O {[%clk 0:02:55.3]} 12. Bxf6 {[%clk 0:02:28.5]}
12... Nxf6 {[%clk 0:02:54.3]} 13. Ng5 {[%clk 0:02:21.6]} 13... Bd7 {[%clk
0:02:50]} 14. Bf3 {[%clk 0:02:14.6]} 14... h6 {[%clk 0:02:48.3]} 15. Nh3 {[%clk
0:02:14.3]} 15... Bxh3 {[%clk 0:02:47.3]} 16. gxh3 {[%clk 0:02:14.6]} 16... Qd7
{[%clk 0:02:31.5]} 17. Bg4 {[%clk 0:02:11.3]} 17... Nxg4 {[%clk 0:02:30]} 18.
hxg4 {[%clk 0:02:08.2]} 18... Rc4 {[%clk 0:02:21.1]} 19. Nd5 {[%clk 0:01:57.9]}
19... Rxe4 {[%clk 0:02:16.3]} 20. f3 {[%clk 0:01:58.2]} 20... Rd4 {[%clk
0:02:15.7]} 21. Nxe7+ {[%clk 0:01:56.4]} 21... Qxe7 {[%clk 0:02:16.1]} 22. Qe2
{[%clk 0:01:55.3]} 22... Rc8 {[%clk 0:02:04]} 23. c3 {[%clk 0:01:55.3]} 23...
Rf4 {[%clk 0:01:58.6]} 24. Rad1 {[%clk 0:01:50.6]} 24... Rc6 {[%clk 0:01:57.4]}
25. Rd5 {[%clk 0:01:49.8]} 25... Qf6 {[%clk 0:01:54]} 26. Kg2 {[%clk 0:01:43.6]}
26... h5 {[%clk 0:01:51.4]} 27. h3 {[%clk 0:01:43.5]} 27... Qe6 {[%clk
0:01:41.9]} 28. Rfd1 {[%clk 0:01:40.4]} 28... e4 {[%clk 0:01:40.9]} 29. fxe4
{[%clk 0:01:38]} 29... Rxe4 {[%clk 0:01:39.9]} 30. Qf3 {[%clk 0:01:32.6]} 30...
hxg4 {[%clk 0:01:39.5]} 31. hxg4 {[%clk 0:01:32.5]} 31... Rxg4+ {[%clk 0:01:39]}
32. Kf2 {[%clk 0:01:31.5]} 32... Rg6 {[%clk 0:01:34.8]} 33. Rf5 {[%clk
0:01:24.6]} 33... Rc5 {[%clk 0:01:02.5]} 34. Rxc5 {[%clk 0:01:08.6]} 34... dxc5
{[%clk 0:01:01.8]} 35. Rd8+ {[%clk 0:00:55.2]} 35... Kh7 {[%clk 0:01:01.5]} 36.
Qh5+ {[%clk 0:00:55.7]} 36... Rh6 {[%clk 0:01:00.5]} 37. Qd5 {[%clk 0:00:52.7]}
37... Rf6+ {[%clk 0:00:59.3]} 38. Kg3 {[%clk 0:00:50.8]} 38... Qe3+ {[%clk
0:00:58.6]} 39. Kg2 {[%clk 0:00:51.2]} 39... Rf2+ {[%clk 0:00:57.6]} 40. Kh1
{[%clk 0:00:51.4]} 40... Qe1# {[%clk 0:00:57.6]} 0-1

[Event "Late-Titled-Tuesday-Blitz-November-28-2023"]
[Site "Chess.com"]
[Date "2023.11.28"]
[Round "8"]
[White "PapaieDudu"]
[Black "HalfIsCrayfish"]
[Result "0-1"]
[WhiteElo "2423"]
[BlackElo "2602"]
[TimeControl "180+1"]
[EndTime "15:23:53 PST"]
[Termination "HalfIsCrayfish won by checkmate"]

1. e4 {[%clk 0:03:00.9]} 1... c6 {[%clk 0:02:59.5]} 2. Nf3 {[%clk 0:03:00.7]}
2... d5 {[%clk 0:03:00]} 3. e5 {[%clk 0:03:01.3]} 3... Bg4 {[%clk 0:02:56.8]} 4.
d4 {[%clk 0:03:00.9]} 4... e6 {[%clk 0:02:55.2]} 5. Bd3 {[%clk 0:02:59.8]} 5...
c5 {[%clk 0:02:54.6]} 6. c3 {[%clk 0:02:56.5]} 6... Ne7 {[%clk 0:02:53.9]} 7. h3
{[%clk 0:02:56]} 7... Bxf3 {[%clk 0:02:53.5]} 8. Qxf3 {[%clk 0:02:56.9]} 8...
Nec6 {[%clk 0:02:52.6]} 9. Be3 {[%clk 0:02:57.1]} 9... Qb6 {[%clk 0:02:50.6]}
10. O-O {[%clk 0:02:02]} 10... cxd4 {[%clk 0:02:49]} 11. cxd4 {[%clk 0:02:02.2]}
11... Nxd4 {[%clk 0:02:34.7]} 12. Qg4 {[%clk 0:02:02]} 12... Nbc6 {[%clk
0:02:35]} 13. Nc3 {[%clk 0:02:01.7]} 13... h5 {[%clk 0:02:14.7]} 14. Qg5 {[%clk
0:01:50.9]} 14... Be7 {[%clk 0:01:49.1]} 15. Qxg7 {[%clk 0:01:48]} 15... O-O-O
{[%clk 0:01:48.9]} 16. Na4 {[%clk 0:01:34.3]} 16... Qb4 {[%clk 0:01:41.7]} 17.
b3 {[%clk 0:01:29.5]} 17... Rhg8 {[%clk 0:01:34.7]} 18. Qxf7 {[%clk 0:01:27.3]}
18... Rdf8 {[%clk 0:01:32.7]} 19. Qxh5 {[%clk 0:01:27.2]} 19... Rh8 {[%clk
0:01:22.4]} 20. Qd1 {[%clk 0:01:24.9]} 20... Nf3+ {[%clk 0:01:08.9]} 21. Kh1
{[%clk 0:01:22.9]} 21... Rxh3+ {[%clk 0:00:44]} 22. gxh3 {[%clk 0:01:19.4]}
22... Qh4 {[%clk 0:00:44.6]} 23. Kg2 {[%clk 0:00:31.3]} 23... Rg8+ {[%clk
0:00:44]} 24. Kxf3 {[%clk 0:00:31.8]} 24... Qh5+ {[%clk 0:00:44.5]} 25. Kf4
{[%clk 0:00:31.3]} 25... Qxe5+ {[%clk 0:00:45.1]} 26. Kf3 {[%clk 0:00:30.6]}
26... Qh5+ {[%clk 0:00:45.4]} 27. Kf4 {[%clk 0:00:28.9]} 27... Bd6# {[%clk
0:00:45.1]} 0-1

[Event "Late-Titled-Tuesday-Blitz-November-28-2023"]
[Site "Chess.com"]
[Date "2023.11.28"]
[Round "8"]
[White "Alex_Banzea"]
[Black "zajka-molotok"]
[Result "0-1"]
[WhiteElo "2649"]
[BlackElo "2539"]
[TimeControl "180+1"]
[EndTime "15:24:04 PST"]
[Termination "zajka-molotok won by resignation"]

1. d4 {[%clk 0:03:00.9]} 1... Nf6 {[%clk 0:02:57.7]} 2. Nc3 {[%clk 0:03:01.8]}
2... d5 {[%clk 0:02:57.2]} 3. Bf4 {[%clk 0:03:01.8]} 3... c5 {[%clk 0:02:57.1]}
4. e3 {[%clk 0:03:02.3]} 4... cxd4 {[%clk 0:02:56.9]} 5. exd4 {[%clk 0:03:03.2]}
5... a6 {[%clk 0:02:57.3]} 6. Bd3 {[%clk 0:03:03.7]} 6... Nc6 {[%clk 0:02:56.4]}
7. Nge2 {[%clk 0:03:03.3]} 7... Bg4 {[%clk 0:02:51.2]} 8. f3 {[%clk 0:03:03.9]}
8... Bh5 {[%clk 0:02:51]} 9. g4 {[%clk 0:03:04.8]} 9... Bg6 {[%clk 0:02:50.6]}
10. h4 {[%clk 0:03:05.7]} 10... e6 {[%clk 0:02:47.8]} 11. h5 {[%clk 0:03:06.1]}
11... Bxd3 {[%clk 0:02:46.9]} 12. Qxd3 {[%clk 0:03:07]} 12... Bd6 {[%clk
0:02:37.1]} 13. O-O-O {[%clk 0:03:06.9]} 13... Bxf4+ {[%clk 0:02:30.7]} 14. Nxf4
{[%clk 0:03:07.8]} 14... Qd6 {[%clk 0:02:30.1]} 15. Qe3 {[%clk 0:03:07.7]} 15...
h6 {[%clk 0:02:20.7]} 16. Nd3 {[%clk 0:03:05.9]} 16... O-O-O {[%clk 0:02:16.7]}
17. Ne2 {[%clk 0:03:02.6]} 17... Kb8 {[%clk 0:02:12.4]} 18. Ne5 {[%clk
0:03:01.9]} 18... Rhf8 {[%clk 0:02:07]} 19. c3 {[%clk 0:02:59]} 19... Rc8 {[%clk
0:02:03]} 20. Kb1 {[%clk 0:02:42.5]} 20... Nd7 {[%clk 0:02:00.2]} 21. Nxd7+
{[%clk 0:02:39.4]} 21... Qxd7 {[%clk 0:01:59.7]} 22. Nf4 {[%clk 0:02:40.3]}
22... Na5 {[%clk 0:01:55.3]} 23. b3 {[%clk 0:02:35.9]} 23... Qc7 {[%clk
0:01:50.9]} 24. Rc1 {[%clk 0:02:32.6]} 24... Nc6 {[%clk 0:01:48.3]} 25. Nd3
{[%clk 0:02:29.8]} 25... Rfe8 {[%clk 0:01:43.1]} 26. f4 {[%clk 0:02:29.4]} 26...
f6 {[%clk 0:01:35]} 27. Rhe1 {[%clk 0:02:29.7]} 27... Re7 {[%clk 0:01:32.7]} 28.
Kb2 {[%clk 0:02:29.7]} 28... Rce8 {[%clk 0:01:32]} 29. Nc5 {[%clk 0:02:24.5]}
29... e5 {[%clk 0:01:27.3]} 30. dxe5 {[%clk 0:02:25.4]} 30... fxe5 {[%clk
0:01:27.7]} 31. f5 {[%clk 0:02:25.8]} 31... d4 {[%clk 0:01:20.7]} 32. Qd3 {[%clk
0:02:14.8]} 32... e4 {[%clk 0:01:04.7]} 33. Rxe4 {[%clk 0:01:48.4]} 33... Rxe4
{[%clk 0:00:53.1]} 34. Nxe4 {[%clk 0:01:49.3]} 34... Qf4 {[%clk 0:00:50.3]} 35.
Nc5 {[%clk 0:01:29.1]} 35... Re3 {[%clk 0:00:45.6]} 36. Qd2 {[%clk 0:01:21.1]}
36... Qxg4 {[%clk 0:00:39.7]} 37. cxd4 {[%clk 0:00:50.7]} 37... Re2 {[%clk
0:00:38.8]} 0-1

[Event "Late-Titled-Tuesday-Blitz-November-28-2023"]
[Site "Chess.com"]
[Date "2023.11.28"]
[Round "8"]
[White "Hrant_ChessMood"]
[Black "NigelDwarf"]
[Result "1-0"]
[WhiteElo "2925"]
[BlackElo "2562"]
[TimeControl "180+1"]
[EndTime "15:24:05 PST"]
[Termination "Hrant_ChessMood won by checkmate"]

1. e4 {[%clk 0:02:54.8]} 1... c5 {[%clk 0:02:58.3]} 2. Nf3 {[%clk 0:02:53]} 2...
d6 {[%clk 0:02:58.2]} 3. Bc4 {[%clk 0:02:50.7]} 3... Nc6 {[%clk 0:02:55.1]} 4.
O-O {[%clk 0:02:50.3]} 4... Nf6 {[%clk 0:02:54.2]} 5. d3 {[%clk 0:02:50.6]} 5...
Bg4 {[%clk 0:02:48]} 6. h3 {[%clk 0:02:50.6]} 6... Bh5 {[%clk 0:02:47.8]} 7. g4
{[%clk 0:02:51.1]} 7... Bg6 {[%clk 0:02:47.3]} 8. Nh2 {[%clk 0:02:51.8]} 8... e6
{[%clk 0:02:24.4]} 9. f4 {[%clk 0:02:49.5]} 9... d5 {[%clk 0:02:25]} 10. exd5
{[%clk 0:02:46.3]} 10... Nxd5 {[%clk 0:02:05.2]} 11. f5 {[%clk 0:02:41.7]} 11...
Bd6 {[%clk 0:01:59.1]} 12. Bxd5 {[%clk 0:02:38.1]} 12... exd5 {[%clk 0:01:50.7]}
13. Bf4 {[%clk 0:02:37.4]} 13... Bxf4 {[%clk 0:01:48.7]} 14. Rxf4 {[%clk
0:02:38.3]} 14... Qh4 {[%clk 0:01:44.7]} 15. Qe2+ {[%clk 0:02:26.3]} 15... Kd7
{[%clk 0:01:30.6]} 16. Qf2 {[%clk 0:02:26]} 16... Qxh3 {[%clk 0:01:28]} 17. fxg6
{[%clk 0:02:22.3]} 17... hxg6 {[%clk 0:01:21.3]} 18. Rxf7+ {[%clk 0:02:20.9]}
18... Ke6 {[%clk 0:00:50.1]} 19. Rf3 {[%clk 0:02:12.2]} 19... Qh6 {[%clk
0:00:45.9]} 20. Nc3 {[%clk 0:02:12.1]} 20... Nd4 {[%clk 0:00:35]} 21. Re1+
{[%clk 0:02:11]} 21... Kd7 {[%clk 0:00:28.2]} 22. Rf7+ {[%clk 0:02:08.9]} 22...
Kc6 {[%clk 0:00:26.2]} 23. Ne2 {[%clk 0:02:00]} 23... Ne6 {[%clk 0:00:14.9]} 24.
c4 {[%clk 0:01:51.9]} 24... Ng5 {[%clk 0:00:10]} 25. cxd5+ {[%clk 0:01:52]}
25... Kb6 {[%clk 0:00:10.3]} 26. Nf4 {[%clk 0:01:27.5]} 26... Qxh2+ {[%clk
0:00:05.6]} 27. Qxh2 {[%clk 0:01:26.8]} 27... Nf3+ {[%clk 0:00:05.5]} 28. Kf2
{[%clk 0:01:21.7]} 28... Nxh2 {[%clk 0:00:04.7]} 29. Re6+ {[%clk 0:01:21.6]}
29... Kb5 {[%clk 0:00:04.5]} 30. Rxb7+ {[%clk 0:01:21]} 30... Ka5 {[%clk
0:00:04.7]} 31. Rxg6 {[%clk 0:01:12.4]} 31... Raf8 {[%clk 0:00:03.9]} 32. Rxa7+
{[%clk 0:01:12.5]} 32... Kb5 {[%clk 0:00:03.6]} 33. a4+ {[%clk 0:01:11.7]} 33...
Kb4 {[%clk 0:00:03.7]} 34. Rb6# {[%clk 0:01:12.3]} 1-0

[Event "Late-Titled-Tuesday-Blitz-November-28-2023"]
[Site "Chess.com"]
[Date "2023.11.28"]
[Round "8"]
[White "GMthekingindian"]
[Black "gabduschew"]
[Result "1-0"]
[WhiteElo "2345"]
[BlackElo "2427"]
[TimeControl "180+1"]
[EndTime "15:24:08 PST"]
[Termination "GMthekingindian won by resignation"]

1. e4 {[%clk 0:03:00.9]} 1... c6 {[%clk 0:02:57.9]} 2. c4 {[%clk 0:03:00.3]}
2... g6 {[%clk 0:02:56.5]} 3. Nc3 {[%clk 0:02:58.8]} 3... Bg7 {[%clk 0:02:56.1]}
4. d4 {[%clk 0:02:59]} 4... d6 {[%clk 0:02:55.4]} 5. Nf3 {[%clk 0:02:58.6]} 5...
Bg4 {[%clk 0:02:54.3]} 6. Be2 {[%clk 0:02:58.7]} 6... Bxf3 {[%clk 0:02:52.7]} 7.
Bxf3 {[%clk 0:02:58.5]} 7... Qb6 {[%clk 0:02:53.2]} 8. d5 {[%clk 0:02:55.4]}
8... Nd7 {[%clk 0:02:47.5]} 9. O-O {[%clk 0:02:53.2]} 9... Ngf6 {[%clk
0:02:37.6]} 10. Qe2 {[%clk 0:02:45.6]} 10... O-O {[%clk 0:02:33.1]} 11. Be3
{[%clk 0:02:37.9]} 11... Qa6 {[%clk 0:02:29.6]} 12. g3 {[%clk 0:02:35.4]} 12...
Ne5 {[%clk 0:02:27.9]} 13. b3 {[%clk 0:02:32.8]} 13... Nxf3+ {[%clk 0:02:23.9]}
14. Qxf3 {[%clk 0:02:33.1]} 14... Nd7 {[%clk 0:02:22.5]} 15. Bd2 {[%clk
0:02:25.8]} 15... Rac8 {[%clk 0:02:05.2]} 16. Qe2 {[%clk 0:02:14.4]} 16... e6
{[%clk 0:01:51.4]} 17. dxe6 {[%clk 0:02:07.6]} 17... fxe6 {[%clk 0:01:50.9]} 18.
Rad1 {[%clk 0:02:02.4]} 18... Bd4 {[%clk 0:01:38.2]} 19. Kg2 {[%clk 0:02:02.3]}
19... Rf7 {[%clk 0:01:23.1]} 20. f4 {[%clk 0:01:58.7]} 20... e5 {[%clk
0:01:21.1]} 21. f5 {[%clk 0:01:54.6]} 21... gxf5 {[%clk 0:01:12.3]} 22. Rxf5
{[%clk 0:01:44.9]} 22... Rcf8 {[%clk 0:00:56.8]} 23. Rdf1 {[%clk 0:01:31.1]}
23... Rxf5 {[%clk 0:00:50.6]} 24. Qg4+ {[%clk 0:01:28.5]} 24... Kh8 {[%clk
0:00:50.1]} 25. Rxf5 {[%clk 0:01:26.7]} 25... Bxc3 {[%clk 0:00:39.8]} 26. Rxf8+
{[%clk 0:00:50.3]} 26... Nxf8 {[%clk 0:00:39.2]} 27. Bh6 {[%clk 0:00:50.2]}
27... Qxa2+ {[%clk 0:00:25.1]} 28. Kh3 {[%clk 0:00:49.6]} 28... Ng6 {[%clk
0:00:23.5]} 29. Qc8+ {[%clk 0:00:47.9]} 1-0

[Event "Late-Titled-Tuesday-Blitz-November-28-2023"]
[Site "Chess.com"]
[Date "2023.11.28"]
[Round "8"]
[White "stasOR4ik"]
[Black "Koksal06"]
[Result "0-1"]
[WhiteElo "2488"]
[BlackElo "2633"]
[TimeControl "180+1"]
[EndTime "15:24:35 PST"]
[Termination "Koksal06 won on time"]

1. e4 {[%clk 0:03:00.9]} 1... e5 {[%clk 0:03:00.3]} 2. Nf3 {[%clk 0:03:00.8]}
2... Nc6 {[%clk 0:03:00.8]} 3. Bb5 {[%clk 0:03:01.3]} 3... Nge7 {[%clk
0:03:01.3]} 4. O-O {[%clk 0:03:00.1]} 4... g6 {[%clk 0:03:01.1]} 5. c3 {[%clk
0:02:58.9]} 5... a6 {[%clk 0:03:01.2]} 6. Ba4 {[%clk 0:02:59]} 6... Bg7 {[%clk
0:03:01.7]} 7. d4 {[%clk 0:02:59.3]} 7... exd4 {[%clk 0:03:01.5]} 8. cxd4 {[%clk
0:02:59.4]} 8... b5 {[%clk 0:03:02.2]} 9. Bc2 {[%clk 0:02:55.3]} 9... O-O {[%clk
0:03:01.9]} 10. Bg5 {[%clk 0:02:50.8]} 10... d6 {[%clk 0:03:00.3]} 11. Nc3
{[%clk 0:02:44.6]} 11... Bg4 {[%clk 0:02:58.7]} 12. Ne2 {[%clk 0:02:18]} 12...
Bxf3 {[%clk 0:02:57.6]} 13. gxf3 {[%clk 0:02:18]} 13... h6 {[%clk 0:02:58]} 14.
Be3 {[%clk 0:02:16]} 14... Na5 {[%clk 0:02:44.6]} 15. b3 {[%clk 0:02:09.4]}
15... c5 {[%clk 0:02:45]} 16. Qd2 {[%clk 0:02:02.5]} 16... Kh7 {[%clk
0:02:43.2]} 17. Rad1 {[%clk 0:01:49.9]} 17... c4 {[%clk 0:02:42.9]} 18. Kh1
{[%clk 0:01:45.5]} 18... d5 {[%clk 0:02:41.3]} 19. e5 {[%clk 0:01:41.8]} 19...
Rc8 {[%clk 0:02:26.9]} 20. Rg1 {[%clk 0:01:24.2]} 20... Nac6 {[%clk 0:02:24.5]}
21. Nf4 {[%clk 0:01:18.4]} 21... c3 {[%clk 0:02:07.4]} 22. Qc1 {[%clk 0:01:17]}
22... Nb4 {[%clk 0:02:05.1]} 23. Nh5 {[%clk 0:01:00.4]} 23... Nxc2 {[%clk
0:02:01.9]} 24. Qxc2 {[%clk 0:00:59.2]} 24... Qd7 {[%clk 0:01:46.5]} 25. Nxg7
{[%clk 0:00:33.1]} 25... Kxg7 {[%clk 0:01:46.1]} 26. b4 {[%clk 0:00:33.2]} 26...
Qf5 {[%clk 0:01:40.6]} 27. Qxf5 {[%clk 0:00:23.5]} 27... Nxf5 {[%clk 0:01:41.5]}
28. Rc1 {[%clk 0:00:18.5]} 28... Rc4 {[%clk 0:01:40.7]} 29. a3 {[%clk
0:00:17.5]} 29... Rfc8 {[%clk 0:01:41.3]} 30. Rgd1 {[%clk 0:00:17.1]} 30... c2
{[%clk 0:01:24.8]} 31. Rd2 {[%clk 0:00:15.9]} 31... Rc3 {[%clk 0:01:25.2]} 32.
Kg2 {[%clk 0:00:14.5]} 32... Rxa3 {[%clk 0:01:23.1]} 33. Rdxc2 {[%clk
0:00:14.3]} 33... Rxc2 {[%clk 0:01:24]} 34. Rxc2 {[%clk 0:00:14.8]} 34... Rxe3
{[%clk 0:01:24.7]} 35. Rc6 {[%clk 0:00:12.3]} 35... Rb3 {[%clk 0:01:21.6]} 36.
Rc7 {[%clk 0:00:08.1]} 36... Nxd4 {[%clk 0:01:21.7]} 37. f4 {[%clk 0:00:06.7]}
37... Rxb4 {[%clk 0:01:21.6]} 38. Kg3 {[%clk 0:00:06.1]} 38... a5 {[%clk
0:01:19.9]} 39. Rd7 {[%clk 0:00:04.4]} 39... a4 {[%clk 0:01:19.8]} 40. Rxd5
{[%clk 0:00:04.7]} 40... a3 {[%clk 0:01:20.3]} 41. f5 {[%clk 0:00:04.1]} 41...
a2 {[%clk 0:01:19.1]} 42. f6+ {[%clk 0:00:03.8]} 42... Kh7 {[%clk 0:01:19.7]}
43. Rd7 {[%clk 0:00:04.3]} 43... a1=Q {[%clk 0:01:18.5]} 44. Rxf7+ {[%clk
0:00:04.2]} 44... Kg8 {[%clk 0:01:19]} 45. Rg7+ {[%clk 0:00:03.5]} 45... Kf8
{[%clk 0:01:19.6]} 46. Rh7 {[%clk 0:00:03.2]} 46... Rb3+ {[%clk 0:01:19.6]} 47.
Kh4 {[%clk 0:00:01.5]} 47... Nf5+ {[%clk 0:01:17.5]} 0-1